fUST/lending_fUST_20240927
["ID","MTS","AMOUNT","RATE_DAILY","PERIOD"]
[339291432,1727441443552,-500.0,0.00019178,2]
[339291434,1727441443561,-500.0,0.00019178,2]
[339291436,1727441443570,-500.0,0.00019178,2]
[339291438,1727441443579,-481.33745673,0.00019178,2]
[339291440,1727441443589,-500.0,0.00019178,2]
[339291442,1727441443598,-500.0,0.00019178,2]
[339291444,1727441443607,-500.0,0.00019178,2]
[339291446,1727441443617,-500.0,0.00019178,2]
[339291448,1727441443628,-500.0,0.00019178,2]
[339291450,1727441443637,-500.0,0.00019178,2]
[339291452,1727441443647,-500.0,0.00019178,2]
[339291454,1727441443656,-500.0,0.00019178,2]
[339291456,1727441443666,-500.0,0.00019178,2]
[339291458,1727441443676,-500.0,0.00019178,2]
[339291460,1727441443685,-503.82682857,0.00019178,2]
[339291462,1727441443694,-500.0,0.00019178,2]
[339291464,1727441443703,-244.740292,0.00019178,2]
[339291465,1727441443712,-1000.0,0.00019178,2]
[339291467,1727441443721,-244.740292,0.00019178,2]
[339291469,1727441443730,-500.0,0.00019178,2]
[339291471,1727441443740,-500.0,0.00019178,2]
[339291473,1727441443749,-533.73141373,0.00019178,2]
[339291475,1727441443758,-388.2669,0.00019178,2]
[339291477,1727441443767,-500.0,0.00019178,2]
[339291479,1727441443777,-500.0,0.00019178,2]
[339291481,1727441443786,-388.2669,0.00019178,2]
[339291483,1727441443795,-500.0,0.00019178,2]
[339291485,1727441443804,-150.31427972,0.00019178,2]
[339291487,1727441443813,-500.0,0.00019178,2]
[339291489,1727441443822,-500.0,0.00019178,2]
[339291491,1727441443831,-543.31043458,0.00019178,2]
[339291493,1727441443841,-513.30267835,0.00019178,2]
[339291495,1727441443850,-500.0,0.00019178,2]
[339291497,1727441443859,-500.0,0.00019178,2]
[339291499,1727441443869,-503.42083293,0.00019178,2]
[339291501,1727441443879,-500.0,0.00019178,2]
[339291503,1727441443888,-500.0,0.00019178,2]
[339291505,1727441443898,-1149.73,0.00019178,2]
[339291507,1727441443907,-511.35248528,0.00019178,2]
[339291509,1727441443917,-500.0,0.00019178,2]
[339291511,1727441443929,-14444.41,0.00019178,2]
[339291513,1727441443940,-500.0,0.00019178,2]
[339291515,1727441443950,-505.41265198,0.00019178,2]
[339291517,1727441443960,-500.0,0.00019178,2]
[339291519,1727441443970,-151.0,0.00019178,2]
[339291521,1727441443981,-516.75842938,0.00019178,2]
[339291523,1727441443990,-500.0,0.00019178,2]
[339291525,1727441443999,-500.0,0.00019178,2]
[339291527,1727441444009,-500.0,0.00019178,2]
[339291529,1727441444019,-500.0,0.00019178,2]
[339291531,1727441444029,-500.0,0.00019178,2]
[339291533,1727441444039,-2715.76,0.00019178,2]
[339291535,1727441444049,-225.66907128,0.00019178,2]
[339291537,1727441444060,-500.0,0.00019178,2]
[339291539,1727441444070,-500.0,0.00019178,2]
[339291541,1727441444079,-256.72957192,0.00019178,2]
[339291543,1727441444089,-500.0,0.00019178,2]
[339291545,1727441444098,-500.0,0.00019178,2]
[339291547,1727441444107,-500.0,0.00019178,2]
[339291549,1727441444117,-500.0,0.00019178,2]
[339291551,1727441444126,-500.0,0.00019178,2]
[339291553,1727441444136,-496.31801106,0.00019178,2]
[339291555,1727441444145,-500.0,0.00019178,2]
[339291557,1727441444154,-501.83840042,0.00019178,2]
[339291559,1727441444163,-500.0,0.00019178,2]
[339291561,1727441444171,-193.19890639,0.00019178,2]
[339291563,1727441444182,-500.0,0.00019178,2]
[339291565,1727441444191,-500.0,0.00019178,2]
[339291567,1727441444200,-506.72316098,0.00019178,2]
[339291569,1727441444209,-500.0,0.00019178,2]
[339291571,1727441444218,-500.0,0.00019178,2]
[339291572,1727441444227,-500.0,0.00019178,2]
[339291574,1727441444237,-500.0,0.00019178,2]
[339291577,1727441444246,-272.557229,0.00019178,2]
[339291578,1727441444256,-500.0,0.00019178,2]
[339291580,1727441444265,-272.557229,0.00019178,2]
[339291582,1727441444274,-500.0,0.00019178,2]
[339291584,1727441444285,-558.34457907,0.00019178,2]
[339291586,1727441444294,-500.0,0.00019178,2]
[339291588,1727441444303,-571.08775868,0.00019178,2]
[339291590,1727441444313,-531.847437,0.00019178,2]
[339291592,1727441444323,-500.0,0.00019178,2]
[339291594,1727441444332,-503.00449786,0.00019178,2]
[339291596,1727441444341,-500.0,0.00019178,2]
[339291598,1727441444350,-500.0,0.00019178,2]
[339291600,1727441444360,-531.847437,0.00019178,2]
[339291602,1727441444369,-500.0,0.00019178,2]
[339291604,1727441444378,-500.0,0.00019178,2]
[339291606,1727441444387,-500.0,0.00019178,2]
[339291608,1727441444397,-500.0,0.00019178,2]
[339291610,1727441444406,-374.04901473,0.00019178,2]
[339291612,1727441444415,-500.0,0.00019178,2]
[339291614,1727441444424,-500.0,0.00019178,2]
[339291616,1727441444435,-500.0,0.00019178,2]
[339291618,1727441444445,-500.0,0.00019178,2]
[339291620,1727441444455,-501.63113708,0.00019178,2]
[339291622,1727441444465,-501.76827861,0.00019178,2]
[339291624,1727441444475,-500.0,0.00019178,2]
[339291626,1727441444485,-256.861246,0.00019178,2]
[339291628,1727441444495,-500.0,0.00019178,2]
[339291630,1727441444508,-517.31186304,0.00019178,2]
[339291632,1727441444518,-500.0,0.00019178,2]
[339291634,1727441444526,-500.0,0.00019178,2]
[339291636,1727441444536,-500.0,0.00019178,2]
[339291638,1727441444547,-500.0,0.00019178,2]
[339291640,1727441444558,-317.78180645,0.00019178,2]
[339291642,1727441444568,-513.06137565,0.00019178,2]
[339291644,1727441444577,-500.0,0.00019178,2]
[339291646,1727441444588,-256.861246,0.00019178,2]
[339291648,1727441444598,-598.94032415,0.00019178,2]
[339291650,1727441444609,-500.0,0.00019178,2]
[339291652,1727441444619,-1819.967825,0.00019178,2]
[339291654,1727441444628,-640.18445733,0.00019178,2]
[339291656,1727441444638,-500.0,0.00019178,2]
[339291658,1727441444648,-517.0510758,0.00019178,2]
[339291660,1727441444659,-500.0,0.00019178,2]
[339291662,1727441444669,-1819.967825,0.00019178,2]
[339291664,1727441444679,-523.29652367,0.00019178,2]
[339291666,1727441444688,-516.14742488,0.00019178,2]
[339291668,1727441444698,-464.26494316,0.00019178,2]
[339291670,1727441444706,-676.436587,0.00019178,2]
[339291672,1727441444715,-500.0,0.00019178,2]
[339291674,1727441444725,-500.0,0.00019178,2]
[339291676,1727441444734,-503.26947421,0.00019178,2]
[339291678,1727441444744,-500.0,0.00019178,2]
[339291680,1727441444753,-500.0,0.00019178,2]
[339291682,1727441444762,-676.436587,0.00019178,2]
[339291684,1727441444771,-571.02813105,0.00019178,2]
[339291686,1727441444780,-500.0,0.00019178,2]
[339291688,1727441444790,-509.34441419,0.00019178,2]
[339291690,1727441444800,-500.0,0.00019178,2]
[339291692,1727441444810,-500.0,0.00019178,2]
[339291694,1727441444821,-525.2,0.00019178,2]
[339291696,1727441444831,-505.39575549,0.00019178,2]
[339291698,1727441444840,-500.0,0.00019178,2]
[339291700,1727441444850,-262.28491804,0.00019178,2]
[339291702,1727441444860,-500.0,0.00019178,2]
[339291704,1727441444869,-1000.0,0.00019178,2]
[339291706,1727441444879,-507.60765609,0.00019178,2]
[339291708,1727441444888,-500.0,0.00019178,2]
[339291710,1727441444898,-500.0,0.00019178,2]
[339291712,1727441444907,-504.301689,0.00019178,2]
[339291714,1727441444916,-500.0,0.00019178,2]
[339291716,1727441444925,-264.81377327,0.00019178,2]
[339291718,1727441444935,-169.9404142,0.00019178,2]
[339291720,1727441444944,-444.85133149,0.00019178,2]
[339291722,1727441444953,-500.0,0.00019178,2]
[339291724,1727441444962,-529.42981765,0.00019178,2]
[339291726,1727441444971,-510.96468312,0.00019178,2]
[339291728,1727441444981,-500.0,0.00019178,2]
[339291730,1727441444991,-563.574286,0.00019178,2]
[339291732,1727441445000,-264.32169824,0.00019178,2]
[339291734,1727441445011,-500.0,0.00019178,2]
[339291736,1727441445021,-500.0,0.00019178,2]
[339291738,1727441445031,-506.82329208,0.00019178,2]
[339291740,1727441445040,-563.574286,0.00019178,2]
[339291742,1727441445050,-184.26401138,0.00019178,2]
[339291744,1727441445059,-500.0,0.00019178,2]
[339291746,1727441445068,-500.0,0.00019178,2]
[339291748,1727441445077,-568.05262198,0.00019178,2]
[339291750,1727441445086,-472.35343011,0.00019178,2]
[339291752,1727441445096,-510.45469994,0.00019178,2]
[339291754,1727441445105,-500.0,0.00019178,2]
[339291756,1727441445115,-500.0,0.00019178,2]
[339291758,1727441445123,-500.0,0.00019178,2]
[339291760,1727441445132,-500.0,0.00019178,2]
[339291762,1727441445142,-500.0,0.00019178,2]
[339291764,1727441445152,-500.0,0.00019178,2]
[339291766,1727441445161,-500.0,0.00019178,2]
[339291768,1727441445170,-500.0,0.00019178,2]
[339291770,1727441445181,-500.0,0.00019178,2]
[339291772,1727441445191,-500.0,0.00019178,2]
[339291774,1727441445200,-503.98325033,0.00019178,2]
[339291776,1727441445209,-500.0,0.00019178,2]
[339291778,1727441445218,-500.0,0.00019178,2]
[339291780,1727441445227,-500.0,0.00019178,2]
[339291782,1727441445236,-500.0,0.00019178,2]
[339291784,1727441445245,-500.0,0.00019178,2]
[339291786,1727441445254,-500.0,0.00019178,2]
[339291788,1727441445264,-500.0,0.00019178,2]
[339291790,1727441445273,-500.0,0.00019178,2]
[339291792,1727441445282,-500.0,0.00019178,2]
[339291794,1727441445292,-600.38907819,0.00019178,2]
[339291796,1727441445302,-1454.02,0.00019178,2]
[339291798,1727441445311,-531.08333799,0.00019178,2]
[339291800,1727441445320,-500.0,0.00019178,2]
[339291802,1727441445330,-504.71657873,0.00019178,2]
[339291804,1727441445339,-500.0,0.00019178,2]
[339291806,1727441445348,-500.0,0.00019178,2]
[339291808,1727441445357,-500.0,0.00019178,2]
[339291810,1727441445367,-500.0,0.00019178,2]
[339291811,1727441445376,-500.0,0.00019178,2]
[339291813,1727441445386,-500.0,0.00019178,2]
[339291815,1727441445395,-500.0,0.00019178,2]
[339291817,1727441445404,-576.96590482,0.00019178,2]
[339291819,1727441445414,-500.0,0.00019178,2]
[339291820,1727441445423,-504.53655273,0.00019178,2]
[339291821,1727441445435,-500.0,0.00019178,2]
[339291822,1727441445443,-502.35137241,0.00019178,2]
[339291823,1727441445452,-501.24750944,0.00019178,2]
[339291824,1727441445461,-500.0,0.00019178,2]
[339291825,1727441445470,-641.03463898,0.00019178,2]
[339291826,1727441445479,-500.0,0.00019178,2]
[339291827,1727441445489,-500.0,0.00019178,2]
[339291829,1727441445498,-500.0,0.00019178,2]
[339291831,1727441445512,-500.0,0.00019178,2]
[339291833,1727441445521,-500.0,0.00019178,2]
[339291835,1727441445532,-500.0,0.00019178,2]
[339291837,1727441445541,-1870.68,0.00019178,2]
[339291839,1727441445550,-1597.88,0.00019178,2]
[339291841,1727441445560,-500.0,0.00019178,2]
[339291843,1727441445571,-500.0,0.00019178,2]
[339291846,1727441445582,-500.0,0.00019178,2]
[339291848,1727441445592,-500.0,0.00019178,2]
[339291859,1727441445691,-554.31378775,0.00019178,2]
[339291861,1727441445700,-500.0,0.00019178,2]
[339291863,1727441445709,-500.0,0.00019178,2]
[339291865,1727441445719,-552.67060331,0.00019178,2]
[339291867,1727441445727,-548.71629245,0.00019178,2]
[339291869,1727441445737,-500.0,0.00019178,2]
[339291871,1727441445746,-500.0,0.00019178,2]
[339291873,1727441445755,-500.0,0.00019178,2]
[339291875,1727441445765,-500.0,0.00019178,2]
[339291878,1727441445774,-500.0,0.00019178,2]
[339291880,1727441445786,-500.0,0.00019178,2]
[339291882,1727441445795,-640.84628451,0.00019178,2]
[339291884,1727441445805,-500.0,0.00019178,2]
[339291886,1727441445814,-500.0,0.00019178,2]
[339291888,1727441445823,-500.0,0.00019178,2]
[339291890,1727441445834,-510.19479574,0.00019178,2]
[339291892,1727441445843,-500.0,0.00019178,2]
[339291895,1727441445854,-500.0,0.00019178,2]
[339291897,1727441445864,-500.0,0.00019178,2]
[339291899,1727441445873,-500.0,0.00019178,2]
[339291901,1727441445883,-500.0,0.00019178,2]
[339291903,1727441445893,-508.17203683,0.00019178,2]
[339291905,1727441445903,-500.0,0.00019178,2]
[339291907,1727441445912,-500.0,0.00019178,2]
[339291908,1727441445921,-500.0,0.00019178,2]
[339291910,1727441445932,-500.0,0.00019178,2]
[339291912,1727441445941,-500.0,0.00019178,2]
[339291914,1727441445951,-476.006498,0.00019178,2]
[339291916,1727441445960,-500.0,0.00019178,2]
[339291918,1727441445972,-500.0,0.00019178,2]
[339291920,1727441445982,-522.83889569,0.00019178,2]
[339291922,1727441445991,-476.006498,0.00019178,2]
[339291924,1727441446000,-500.0,0.00019178,2]
[339291926,1727441446010,-584.856435,0.00019178,2]
[339291928,1727441446019,-500.0,0.00019178,2]
[339291930,1727441446028,-584.856435,0.00019178,2]
[339291932,1727441446038,-5000.0,0.00019178,2]
[339291934,1727441446048,-300.25769185,0.00019178,2]
[339291936,1727441446058,-500.0,0.00019178,2]
[339291938,1727441446068,-291.00638307,0.00019178,2]
[339291940,1727441446077,-584.856435,0.00019178,2]
[339291942,1727441446087,-500.0,0.00019178,2]
[339291944,1727441446096,-584.856435,0.00019178,2]
[339291946,1727441446105,-500.0,0.00019178,2]
[339291948,1727441446115,-200.0,0.00019178,2]
[339291950,1727441446124,-500.0,0.00019178,2]
[339291952,1727441446133,-500.0,0.00019178,2]
[339291954,1727441446142,-161.967575,0.00019178,2]
[339291956,1727441446152,-171.276876,0.00019178,2]
[339291958,1727441446162,-5640.5739736,0.00019178,2]
[339291960,1727441446172,-445.4218728,0.00019178,4]
[339291962,1727441446181,-587.0,0.00019203,2]
[339291964,1727441446190,-150.112233,0.000193,2]
[339291967,1727441446201,-150.112233,0.000194,2]
[339291968,1727441446210,-587.0,0.00019441,2]
[339291970,1727441446220,-151.0,0.00019442,2]
[339291973,1727441446229,-151.0,0.00019442,2]
[339291975,1727441446240,-500.0,0.00019451,2]
[339291977,1727441446249,-550.71981979,0.00019451,2]
[339291979,1727441446260,-160.0,0.00019451,2]
[339291981,1727441446271,-151.0,0.00019452,2]
[339291983,1727441446280,-151.0,0.00019452,2]
[339291985,1727441446290,-151.0,0.00019452,2]
[339291987,1727441446301,-151.0,0.00019452,2]
[339291989,1727441446310,-505.87965917,0.00019452,2]
[339291992,1727441446320,-621.29322847,0.00019452,2]
[339291994,1727441446330,-506.94895857,0.00019452,2]
[339291996,1727441446340,-507.66008765,0.00019452,2]
[339291998,1727441446351,-201.71243359,0.00019452,2]
[339292000,1727441446361,-500.0,0.00019452,2]
[339292002,1727441446370,-502.31690782,0.00019452,2]
[339292004,1727441446381,-507.17430862,0.00019452,2]
[339292006,1727441446390,-259.03490477,0.00019452,2]
[339292008,1727441446400,-502.91876284,0.00019452,2]
[339292010,1727441446409,-500.0,0.00019452,2]
[339292012,1727441446419,-500.0,0.00019452,2]
[339292014,1727441446428,-352.38333103,0.00019452,2]
[339292016,1727441446439,-500.0,0.00019452,2]
[339292019,1727441446450,-500.0,0.00019452,2]
[339292021,1727441446460,-500.0,0.00019452,2]
[339292023,1727441446471,-503.99155192,0.00019452,2]
[339292025,1727441446480,-517.61207423,0.00019452,2]
[339292027,1727441446489,-500.0,0.00019452,2]
[339292029,1727441446498,-500.0,0.00019452,2]
[339292031,1727441446512,-500.0,0.00019452,2]
[339292033,1727441446521,-490.0,0.00019452,2]
[339292035,1727441446531,-500.0,0.00019452,2]
[339292037,1727441446540,-500.0,0.00019452,2]
[339292039,1727441446550,-500.0,0.00019452,2]
[339292041,1727441446559,-504.78427138,0.00019452,2]
[339292043,1727441446569,-502.49725659,0.00019452,2]
[339292045,1727441446578,-500.0,0.00019452,2]
[339292047,1727441446589,-500.0,0.00019452,2]
[339292049,1727441446598,-530.24686755,0.00019452,2]
[339292051,1727441446607,-891.26,0.00019452,2]
[339292053,1727441446616,-500.0,0.00019452,2]
[339292055,1727441446625,-503.80014309,0.00019452,2]
[339292057,1727441446634,-500.0,0.00019452,2]
[339292059,1727441446643,-507.81399178,0.00019452,2]
[339292061,1727441446652,-501.95821522,0.00019452,2]
[339292063,1727441446661,-500.0,0.00019452,2]
[339292065,1727441446670,-501.66673427,0.00019452,2]
[339292067,1727441446679,-507.72145634,0.00019452,2]
[339292069,1727441446688,-500.0,0.00019452,2]
[339292071,1727441446697,-500.0,0.00019452,2]
[339292073,1727441446706,-500.0,0.00019452,2]
[339292075,1727441446716,-507.86377123,0.00019452,2]
[339292077,1727441446725,-500.0,0.00019452,2]
[339292079,1727441446734,-500.0,0.00019452,2]
[339292081,1727441446743,-506.87517003,0.00019452,2]
[339292083,1727441446751,-500.0,0.00019452,2]
[339292085,1727441446760,-500.0,0.00019452,2]
[339292087,1727441446769,-507.54444342,0.00019452,2]
[339292089,1727441446779,-343.48435352,0.00019452,2]
[339292091,1727441446788,-500.0,0.00019452,2]
[339292093,1727441446797,-503.06558109,0.00019452,2]
[339292095,1727441446806,-500.0,0.00019452,2]
[339292097,1727441446815,-504.0,0.00019452,2]
[339292099,1727441446824,-506.23067711,0.00019452,2]
[339292101,1727441446834,-500.0,0.00019452,2]
[339292103,1727441446843,-523.45704906,0.00019452,2]
[339292105,1727441446852,-500.0,0.00019452,2]
[339292107,1727441446861,-504.21961253,0.00019452,2]
[339292109,1727441446870,-340.16622572,0.00019452,2]
[339292111,1727441446879,-1119.92,0.00019452,2]
[339292113,1727441446888,-500.0,0.00019452,2]
[339292115,1727441446897,-507.57481586,0.00019452,2]
[339292117,1727441446907,-500.0,0.00019452,2]
[339292119,1727441446916,-509.13465812,0.00019452,2]
[339292121,1727441446926,-1326.72,0.00019452,2]
[339292123,1727441446937,-520.48870808,0.00019452,2]
[339292125,1727441446946,-776.6,0.00019452,2]
[339292127,1727441446955,-500.0,0.00019452,2]
[339292129,1727441446964,-503.00704642,0.00019452,2]
[339292131,1727441446974,-500.0,0.00019452,2]
[339292133,1727441446983,-511.67284037,0.00019452,2]
[339292135,1727441446992,-500.0,0.00019452,2]
[339292137,1727441447001,-572.16915582,0.00019452,2]
[339292139,1727441447009,-500.0,0.00019452,2]
[339292141,1727441447019,-151.0,0.00019452,2]
[339292143,1727441447027,-500.0,0.00019452,2]
[339292145,1727441447036,-921.01,0.00019452,2]
[339292147,1727441447045,-506.95147039,0.00019452,2]
[339292149,1727441447054,-220.63047378,0.00019452,2]
[339292151,1727441447064,-502.2540826,0.00019452,2]
[339292153,1727441447073,-1083.43,0.00019452,2]
[339292155,1727441447083,-500.0,0.00019452,2]
[339292157,1727441447092,-500.0,0.00019452,2]
[339292159,1727441447101,-502.42677139,0.00019452,2]
[339292161,1727441447110,-500.0,0.00019452,2]
[339292163,1727441447119,-506.94099607,0.00019452,2]
[339292165,1727441447128,-500.0,0.00019452,2]
[339292167,1727441447137,-504.15036054,0.00019452,2]
[339292169,1727441447146,-500.0,0.00019452,2]
[339292171,1727441447157,-208.195853,0.00019452,2]
[339292174,1727441447166,-500.0,0.00019452,2]
[339292176,1727441447176,-506.43246892,0.00019452,2]
[339292178,1727441447187,-208.195853,0.00019452,2]
[339292180,1727441447197,-151.0,0.00019452,2]
[339292182,1727441447206,-302.08497231,0.00019452,2]
[339292184,1727441447216,-500.0,0.00019452,2]
[339292186,1727441447226,-512.23399119,0.00019452,2]
[339292188,1727441447235,-535.78,0.00019452,2]
[339292190,1727441447245,-584.73,0.00019452,2]
[339292192,1727441447257,-500.0,0.00019452,2]
[339292194,1727441447267,-500.0,0.00019452,2]
[339292196,1727441447276,-500.0,0.00019452,2]
[339292198,1727441447286,-506.00711978,0.00019452,2]
[339292200,1727441447295,-500.0,0.00019452,2]
[339292202,1727441447304,-504.43924134,0.00019452,2]
[339292204,1727441447315,-500.0,0.00019452,2]
[339292206,1727441447325,-500.0,0.00019452,2]
[339292208,1727441447335,-504.77009013,0.00019452,2]
[339292210,1727441447344,-500.0,0.00019452,2]
[339292212,1727441447353,-504.36913356,0.00019452,2]
[339292214,1727441447364,-500.0,0.00019452,2]
[339292216,1727441447373,-500.0,0.00019452,2]
[339292218,1727441447383,-244.740292,0.00019452,2]
[339292220,1727441447393,-244.740292,0.00019452,2]
[339292222,1727441447406,-500.0,0.00019452,2]
[339292224,1727441447415,-388.2669,0.00019452,2]
[339292226,1727441447426,-500.0,0.00019452,2]
[339292228,1727441447439,-388.2669,0.00019452,2]
[339292230,1727441447448,-522.0485193,0.00019452,2]
[339292232,1727441447458,-505.47306469,0.00019452,2]
[339292234,1727441447467,-500.0,0.00019452,2]
[339292236,1727441447476,-1149.73,0.00019452,2]
[339292238,1727441447486,-14444.41,0.00019452,2]
[339292240,1727441447495,-500.0,0.00019452,2]
[339292243,1727441447507,-500.0,0.00019452,2]
[339292245,1727441447517,-151.0,0.00019452,2]
[339292247,1727441447526,-500.0,0.00019452,2]
[339292249,1727441447535,-2715.76,0.00019452,2]
[339292251,1727441447544,-500.0,0.00019452,2]
[339292253,1727441447554,-500.0,0.00019452,2]
[339292255,1727441447563,-503.63707512,0.00019452,2]
[339292257,1727441447572,-500.0,0.00019452,2]
[339292259,1727441447582,-502.21952152,0.00019452,2]
[339292260,1727441447591,-500.0,0.00019452,2]
[339292263,1727441447601,-510.32515356,0.00019452,2]
[339292265,1727441447610,-505.69260725,0.00019452,2]
[339292267,1727441447621,-402.13194978,0.00019452,2]
[339292269,1727441447630,-272.557229,0.00019452,2]
[339292271,1727441447640,-509.92699727,0.00019452,2]
[339292273,1727441447649,-272.557229,0.00019452,2]
[339292275,1727441447658,-591.51753647,0.00019452,2]
[339292277,1727441447667,-531.847437,0.00019452,2]
[339292278,1727441447676,-502.25459289,0.00019452,2]
[339292280,1727441447686,-531.847437,0.00019452,2]
[339292282,1727441447695,-501.58246172,0.00019452,2]
[339292284,1727441447704,-500.0,0.00019452,2]
[339292295,1727441447799,-505.35261575,0.00019452,2]
[339292297,1727441447809,-506.47387956,0.00019452,2]
[339292299,1727441447818,-500.0,0.00019452,2]
[339292302,1727441447828,-500.0,0.00019452,2]
[339292304,1727441447837,-500.0,0.00019452,2]
[339292306,1727441447846,-256.861246,0.00019452,2]
[339292307,1727441447855,-500.0,0.00019452,2]
[339292309,1727441447865,-500.0,0.00019452,2]
[339292311,1727441447873,-510.52814387,0.00019452,2]
[339292313,1727441447882,-256.861246,0.00019452,2]
[339292315,1727441447891,-503.66934172,0.00019452,2]
[339292317,1727441447901,-1819.967825,0.00019452,2]
[339292320,1727441447913,-1819.967825,0.00019452,2]
[339292322,1727441447922,-676.436587,0.00019452,2]
[339292324,1727441447934,-377.7251503,0.00019452,2]
[339292326,1727441447943,-500.0,0.00019452,2]
[339292328,1727441447952,-676.436587,0.00019452,2]
[339292330,1727441447962,-506.26085563,0.00019452,2]
[339292332,1727441447971,-438.24229567,0.00019452,2]
[339292334,1727441447982,-525.2,0.00019452,2]
[339292336,1727441447992,-548.95000002,0.00019452,2]
[339292338,1727441448001,-1000.0,0.00019452,2]
[339292340,1727441448010,-504.73304,0.00019452,2]
[339292342,1727441448020,-563.574286,0.00019452,2]
[339292344,1727441448029,-563.574286,0.00019452,2]
[339292346,1727441448039,-500.0,0.00019452,2]
[339292348,1727441448050,-273.31,0.00019452,2]
[339292350,1727441448060,-500.0,0.00019452,2]
[339292352,1727441448069,-458.44976795,0.00019452,2]
[339292354,1727441448078,-500.0,0.00019452,2]
[339292356,1727441448087,-500.0,0.00019452,2]
[339292358,1727441448097,-500.0,0.00019452,2]
[339292360,1727441448107,-1454.02,0.00019452,2]
[339292363,1727441448117,-472.35053575,0.00019452,2]
[339292365,1727441448127,-500.0,0.00019452,2]
[339292367,1727441448136,-500.0,0.00019452,2]
[339292369,1727441448146,-500.0,0.00019452,2]
[339292371,1727441448155,-500.0,0.00019452,2]
[339292373,1727441448164,-632.63087207,0.00019452,2]
[339292375,1727441448174,-1870.68,0.00019452,2]
[339292377,1727441448185,-1597.88,0.00019452,2]
[339292379,1727441448194,-500.0,0.00019452,2]
[339292381,1727441448203,-189.93746664,0.00019452,2]
[339292383,1727441448213,-500.0,0.00019452,2]
[339292385,1727441448222,-500.0,0.00019452,2]
[339292387,1727441448232,-289.20766326,0.00019452,2]
[339292389,1727441448241,-502.41177708,0.00019452,2]
[339292391,1727441448251,-500.0,0.00019452,2]
[339292393,1727441448260,-476.006498,0.00019452,2]
[339292395,1727441448270,-476.006498,0.00019452,2]
[339292397,1727441448280,-584.856435,0.00019452,2]
[339292399,1727441448290,-500.0,0.00019452,2]
[339292401,1727441448299,-584.856435,0.00019452,2]
[339292403,1727441448309,-200.0,0.00019452,2]
[339292405,1727441448319,-277.65425032,0.0001956,2]
[339292407,1727441448329,-153.0,0.00019572,2]
[339292409,1727441448339,-153.0,0.00019572,2]
[339292411,1727441448349,-272.0,0.00019572,2]
[339292413,1727441448358,-272.0,0.00019572,2]
[339292415,1727441448367,-272.0,0.00019572,2]
[339292417,1727441448376,-272.0,0.00019572,2]
[339292419,1727441448387,-272.0,0.00019572,2]
[339292421,1727441448396,-272.0,0.00019572,2]
[339292423,1727441448406,-272.0,0.00019572,2]
[339292425,1727441448415,-272.0,0.00019572,2]
[339292426,1727441448424,-272.0,0.00019572,2]
[339292428,1727441448434,-272.0,0.00019572,2]
[339292430,1727441448445,-272.0,0.00019572,2]
[339292432,1727441448455,-272.0,0.00019572,2]
[339292434,1727441448464,-272.0,0.00019572,2]
[339292436,1727441448473,-272.0,0.00019572,2]
[339292438,1727441448483,-153.0,0.00019572,2]
[339292440,1727441448492,-153.0,0.00019572,2]
[339292442,1727441448503,-272.0,0.00019572,2]
[339292444,1727441448516,-272.0,0.00019572,2]